fUST/lending_fUST_20251114
["ID","MTS","AMOUNT","RATE_DAILY","PERIOD"]
[393944528,1763124636895,-322.91,0.0003451,7]
[393944529,1763124636904,-1021.13119915,0.00034616,5]
[393944530,1763124636913,-273.21188423,0.00034692,5]
[393944531,1763124636923,-720.0,0.00034803,30]
[393944532,1763124636933,-511.49505023,0.00034868,5]
[393944533,1763124636948,-155.0,0.00035,120]
[393944534,1763124636958,-209.0,0.00035,120]
[393944535,1763124636967,-400.0,0.000351,7]
[393944536,1763124636977,-309.2770987,0.00035217,120]
[393944537,1763124636987,-1270.49706849,0.00035263,2]
[393944538,1763124636997,-1336.11,0.000354,14]
[393944539,1763124637007,-500.0,0.00035616,5]
[393944540,1763124637016,-151.0,0.00035616,31]
[393944541,1763124637026,-151.0,0.00035616,31]
[393944542,1763124637036,-151.0,0.00035616,31]
[393944543,1763124637046,-151.0,0.00035616,31]
[393944544,1763124637055,-151.0,0.00035616,31]
[393944545,1763124637064,-151.0,0.00035616,31]
[393944546,1763124637074,-151.0,0.00035616,31]
[393944547,1763124637084,-151.0,0.00035616,31]
[393944548,1763124637093,-151.0,0.00035616,31]
[393944549,1763124637102,-151.0,0.00035616,31]
[393944550,1763124637112,-151.0,0.00035616,31]
[393944551,1763124637121,-151.0,0.00035616,31]
[393944552,1763124637131,-275.998086,0.00035616,31]
[393944553,1763124637140,-312.7859993,0.00035842,2]
[393944554,1763124637149,-861.95,0.00035864,2]
[393944555,1763124637159,-257.16762082,0.0003589,5]
[393944556,1763124637169,-1786.22435432,0.00036231,2]
[393944557,1763124637179,-153.0,0.00036401,30]
[393944558,1763124637193,-153.0,0.00036401,30]
[393944559,1763124637203,-153.0,0.00036401,30]
[393944560,1763124637213,-987.0,0.00036413,2]
[393944561,1763124637223,-2161.0,0.00036413,2]
[393944562,1763124637233,-629.0,0.00036413,2]
[393944563,1763124637243,-413.0,0.00036413,2]
[393944564,1763124637253,-823.0,0.00036784,2]
[393944565,1763124637263,-311.220671,0.00036975,10]
[393944566,1763124637273,-1016.14,0.00037,2]
[393944567,1763124637283,-500.0,0.00037,120]
[393944568,1763124637293,-500.0,0.00037,120]
[393944569,1763124637303,-500.0,0.00037,120]
[393944570,1763124637314,-500.0,0.00037,120]
[393944571,1763124637324,-500.0,0.00037,120]
[393944572,1763124637334,-500.0,0.00037,120]
[393944573,1763124637344,-322.59,0.00037,120]
[393944574,1763124637354,-500.0,0.00037,120]
[393944575,1763124637364,-153.97,0.00037023,60]
[393944576,1763124637374,-213.52,0.00037023,60]
[393944577,1763124637383,-153.97,0.00037123,60]
[393944578,1763124637393,-213.52,0.00037123,60]
[393944579,1763124637402,-338.57703436,0.00037217,120]
[393944580,1763124637412,-153.97,0.00037223,60]
[393944581,1763124637422,-213.52,0.00037223,60]
[393944582,1763124637431,-153.97,0.00037323,60]
[393944583,1763124637446,-213.52,0.00037323,60]
[393944584,1763124637455,-1077.44,0.00037358,2]
[393944585,1763124637465,-153.97,0.00037423,60]
[393944586,1763124637476,-213.52,0.00037423,60]
[393944587,1763124637486,-153.97,0.00037523,60]
[393944588,1763124637495,-213.52,0.00037523,60]
[393944589,1763124637505,-200.71,0.000376,30]
[393944590,1763124637515,-153.97,0.00037623,60]
[393944591,1763124637524,-213.52,0.00037623,60]
[393944592,1763124637533,-153.97,0.00037723,60]
[393944593,1763124637543,-213.52,0.00037723,60]
[393944594,1763124637553,-154.04368634,0.00037823,60]
[393944595,1763124637562,-213.52,0.00037823,60]
[393944596,1763124637571,-213.52,0.00037923,60]
[393944597,1763124637581,-200.0,0.00037999,5]
[393944598,1763124637590,-1939954.17191896,0.00038,5]
[393944599,1763124637599,-200.0,0.00038,120]
[393944600,1763124637609,-1003.820705,0.00038,26]
[393944601,1763124637618,-400.38245665,0.00038,30]
[393944602,1763124637627,-152.31,0.00038009,60]
[393944603,1763124637636,-213.52,0.00038023,60]
[393944604,1763124637646,-150.31,0.00038032,60]
[393944605,1763124637655,-152.66,0.00038056,60]
[393944606,1763124637663,-5538.03062141,0.000381,14]
[393944623,1763124639014,-500.0,0.00031165,2]
[393944624,1763124639025,-500.0,0.00031165,2]
[393944625,1763124639035,-500.0,0.00031165,2]
[393944626,1763124639045,-500.0,0.00031165,2]
[393944627,1763124639055,-500.0,0.00031165,2]
[393944628,1763124639065,-500.0,0.00031165,2]
[393944629,1763124639075,-500.0,0.00031165,2]
[393944630,1763124639085,-500.0,0.00031165,2]
[393944631,1763124639096,-500.0,0.00031165,2]
[393944632,1763124639106,-500.0,0.00031165,2]
[393944633,1763124639116,-500.0,0.00031165,2]
[393944635,1763124639126,-500.0,0.00031165,2]
[393944637,1763124639136,-500.0,0.00031165,2]
[393944639,1763124639146,-500.0,0.00031165,2]
[393944640,1763124639156,-500.0,0.00031165,2]
[393944642,1763124639166,-500.0,0.00031165,2]
[393944644,1763124639176,-500.0,0.00031165,2]
[393944646,1763124639188,-500.0,0.00031165,2]
[393944648,1763124639199,-500.0,0.00031165,2]
[393944652,1763124639220,-500.0,0.00031165,2]
[393944654,1763124639232,-500.0,0.00031165,2]
[393944656,1763124639243,-500.0,0.00031165,2]
[393944658,1763124639254,-500.0,0.00031165,2]
[393944660,1763124639265,-274.04116412,0.00031165,2]
[393944662,1763124639276,-410.46,0.0003289,3]
[393944664,1763124639288,-151.0,0.00032989,2]
[393944666,1763124639299,-151.0,0.00032989,31]
[393944668,1763124639309,-151.0,0.00032999,31]
[393944670,1763124639319,-225.6286586,0.00033699,2]
[393944672,1763124639331,-777.88,0.00033747,10]
[393944674,1763124639341,-151.0,0.00033756,31]
[393944676,1763124639350,-159.34937859,0.000381,14]
[393944678,1763124639359,-152.31,0.00038109,60]
[393944680,1763124639369,-213.52,0.00038123,60]
[393944683,1763124639380,-150.31,0.00038132,60]
[393944685,1763124639390,-152.66,0.00038156,60]
[393944687,1763124639400,-152.31,0.00038209,60]
[393944689,1763124639411,-213.52,0.00038223,60]
[393944691,1763124639421,-150.31,0.00038232,60]
[393944693,1763124639431,-152.66,0.00038256,60]
[393944695,1763124639449,-864.0,0.00038284,30]
[393944697,1763124639460,-160.0,0.00038285,2]
[393944699,1763124639471,-400.38245665,0.00038285,2]
[393944701,1763124639480,-160.0,0.00038285,2]
[393944703,1763124639491,-1336.11,0.000383,14]
[393944705,1763124639501,-311.220671,0.000383,60]
[393944708,1763124639512,-152.31,0.00038309,60]
[393944710,1763124639523,-213.52,0.00038323,60]
[393944712,1763124639532,-150.40337593,0.00038332,60]
[393944714,1763124639542,-152.66,0.00038356,60]
[393944716,1763124639551,-500.0,0.00038356,30]
[393944718,1763124639561,-152.31,0.00038409,120]
[393944720,1763124639571,-213.52,0.00038423,120]
[393944722,1763124639581,-151.0,0.00038433,120]
[393944724,1763124639591,-151.0,0.00038433,120]
[393944726,1763124639601,-151.0,0.00038433,120]
[393944728,1763124639611,-251.700669,0.00038433,15]
[393944730,1763124639621,-151.0,0.00038433,120]
[393944732,1763124639631,-152.66,0.00038456,120]
[393944734,1763124639640,-357.196967,0.00038461,2]
[393944736,1763124639650,-151.0,0.00038461,120]
[393944738,1763124639659,-357.196967,0.00038461,2]
[393944740,1763124639668,-357.196967,0.00038461,2]
[393944742,1763124639678,-357.196967,0.00038461,2]
[393944744,1763124639690,-151.0,0.00038461,120]
[393944746,1763124639702,-151.0,0.00038461,120]
[393944748,1763124639712,-189.511415,0.00038461,120]
[393944750,1763124639721,-151.0,0.00038461,120]
[393944752,1763124639731,-151.0,0.00038461,120]
[393944754,1763124639740,-151.0,0.00038461,120]
[393944756,1763124639750,-151.0,0.00038461,120]
[393944758,1763124639759,-461.088143,0.00038461,120]
[393944760,1763124639771,-461.088143,0.00038461,120]
[393944762,1763124639781,-461.088143,0.00038461,120]
[393944763,1763124639790,-461.088143,0.00038461,120]
[393944764,1763124639800,-151.0,0.00038461,120]
[393944765,1763124639810,-151.0,0.00038461,120]
[393944766,1763124639820,-151.0,0.00038461,120]
[393944768,1763124639833,-151.0,0.00038461,120]
[393944770,1763124639842,-151.0,0.00038461,7]
[393944772,1763124639852,-151.0,0.00038461,120]
[393944774,1763124639861,-151.0,0.00038461,120]
[393944776,1763124639870,-151.0,0.00038461,120]
[393944778,1763124639880,-151.0,0.00038461,120]
[393944780,1763124639889,-151.0,0.00038461,120]
[393944782,1763124639899,-151.0,0.00038488,120]
[393944784,1763124639909,-151.0,0.00038488,120]
[393944786,1763124639919,-151.0,0.00038488,120]
[393944788,1763124639929,-311.220671,0.00038505,60]
[393944790,1763124639938,-152.31,0.00038509,120]
[393944792,1763124639951,-213.52,0.00038523,120]
[393944794,1763124639961,-152.66,0.00038556,120]
[393944795,1763124639971,-152.34,0.00038609,120]
[393944796,1763124639981,-213.52,0.00038623,120]
[393944797,1763124639991,-500.0,0.0003863,30]
[393944798,1763124640001,-151.0,0.00038637,120]
[393944799,1763124640012,-151.0,0.00038637,120]
[393944800,1763124640023,-152.66,0.00038656,120]
[393944801,1763124640033,-151.0,0.0003866,120]
[393944803,1763124640042,-161.452324,0.0003866,60]
[393944805,1763124640052,-156.562127,0.0003866,120]
[393944806,1763124640062,-151.0,0.0003866,120]
[393944807,1763124640072,-151.0,0.0003866,120]
[393944808,1763124640082,-152.380844,0.0003866,120]
[393944809,1763124640092,-151.0,0.0003866,120]
[393944810,1763124640101,-151.0,0.0003866,120]
[393944811,1763124640110,-151.0,0.0003866,120]
[393944812,1763124640119,-68098.4374967,0.0003866,2]
[393944813,1763124640129,-1000.0,0.00038673,5]
[393944815,1763124640138,-150.0,0.00038673,2]
[393944816,1763124640147,-311.220671,0.00038709,60]
[393944817,1763124640157,-213.52,0.00038723,120]
[393944818,1763124640167,-302.0,0.00038748,2]
[393944819,1763124640177,-152.66,0.00038756,120]
[393944820,1763124640187,-302.0,0.00038763,2]
[393944822,1763124640201,-302.0,0.00038763,2]
[393944823,1763124640211,-1786.22435432,0.00038763,2]
[393944824,1763124640221,-150.0,0.000388,60]
[393944825,1763124640230,-357.196967,0.00038807,2]
[393944826,1763124640240,-274.040011,0.00038807,120]
[393944827,1763124640249,-357.196967,0.00038807,2]
[393944828,1763124640259,-357.196967,0.00038807,2]
[393944829,1763124640268,-357.196967,0.00038807,2]
[393944830,1763124640278,-151.0,0.00038807,120]
[393944831,1763124640291,-151.0,0.00038807,120]
[393944832,1763124640300,-151.0,0.00038807,120]
[393944833,1763124640311,-151.0,0.00038807,120]
[393944834,1763124640325,-151.0,0.00038807,120]
[393944835,1763124640335,-151.0,0.00038807,120]
[393944836,1763124640344,-461.088143,0.00038807,120]
[393944837,1763124640354,-461.088143,0.00038807,120]
[393944839,1763124640364,-461.088143,0.00038807,120]
[393944841,1763124640373,-461.088143,0.00038807,120]
[393944843,1763124640382,-153.150861,0.00038807,120]
[393944845,1763124640391,-151.0,0.00038807,120]
[393944846,1763124640401,-151.0,0.00038807,120]
[393944848,1763124640410,-267.531873,0.00038807,120]
[393944850,1763124640419,-223.530774,0.00038807,120]
[393944852,1763124640428,-151.0,0.00038807,120]
[393944854,1763124640439,-256.448091,0.00038807,120]
[393944856,1763124640452,-151.0,0.00038807,120]
[393944858,1763124640461,-5324.3399396,0.00038807,2]
[393944859,1763124640471,-213.52,0.00038823,120]
[393944860,1763124640480,-1292.93,0.00038852,2]
[393944861,1763124640490,-151.0,0.00038854,120]
[393944862,1763124640500,-151.0,0.00038854,120]
[393944863,1763124640509,-151.0,0.00038854,120]
[393944865,1763124640519,-151.0,0.00038854,7]
[393944866,1763124640529,-151.0,0.00038854,120]
[393944867,1763124640538,-151.0,0.00038854,120]
[393944868,1763124640548,-151.0,0.00038854,120]
[393944870,1763124640557,-257.251503,0.00038854,120]
[393944872,1763124640567,-151.0,0.00038854,120]
[393944874,1763124640576,-152.66,0.00038856,120]
[393944876,1763124640585,-553.16,0.00038904,30]
[393944878,1763124640594,-311.220671,0.00038914,60]
[393944880,1763124640603,-213.52,0.00038923,120]
[393944882,1763124640613,-152.66,0.00038956,120]
[393944883,1763124640622,-850.11868141,0.00039,10]
[393944884,1763124640632,-501.57167757,0.00039,90]
[393944885,1763124640641,-213.52,0.00039023,120]
[393944887,1763124640651,-152.66,0.00039056,120]
[393944889,1763124640660,-159.935097,0.00039118,60]
[393944891,1763124640670,-311.220671,0.00039118,60]
[393944892,1763124640680,-213.52,0.00039123,120]
[393944894,1763124640695,-152.74261994,0.00039156,120]
[393944895,1763124640706,-157.563347,0.00039185,120]
[393944897,1763124640717,-367.87697003,0.00039217,120]
[393944899,1763124640728,-300.0,0.00039221,2]
[393944901,1763124640738,-213.52,0.00039223,120]
[393944903,1763124640747,-213.52,0.00039323,120]
[393944905,1763124640756,-2161.0,0.00039413,2]
[393944907,1763124640766,-629.0,0.00039413,2]
[393944908,1763124640777,-413.0,0.00039413,2]
[393944909,1763124640788,-213.52,0.00039423,120]
[393944910,1763124640799,-1938.211138,0.0003948,13]
[393944911,1763124640809,-3000.0,0.000395,39]
[393944912,1763124640819,-151.0,0.000395,120]
[393944913,1763124640829,-223.996853,0.000395,120]
[393944914,1763124640838,-1000.0,0.000395,13]
[393944915,1763124640848,-3000.0,0.0003951,39]
[393944916,1763124640858,-151.0,0.0003951,120]
[393944917,1763124640867,-173.189887,0.0003951,120]
[393944918,1763124640877,-3000.0,0.0003952,39]
[393944919,1763124640887,-1000.0,0.0003952,13]
[393944920,1763124640897,-213.52,0.00039523,120]
[393944921,1763124640906,-3000.0,0.0003953,39]
[393944922,1763124640916,-12325.74147434,0.00039534,2]
[393944923,1763124640925,-3000.0,0.0003954,40]
[393944924,1763124640935,-1000.0,0.0003954,13]
[393944925,1763124641041,-3000.0,0.0003955,40]
[393944926,1763124641052,-3000.0,0.0003956,40]
[393944927,1763124641062,-1000.0,0.0003956,13]
[393944928,1763124641072,-3000.0,0.0003957,40]
[393944929,1763124641081,-3000.0,0.0003958,40]
[393944930,1763124641091,-1000.0,0.0003958,13]
[393944931,1763124641100,-3000.0,0.0003959,40]
[393944932,1763124641109,-244.97331222,0.000396,120]
[393944933,1763124641122,-295.21722631,0.000396,120]
[393944934,1763124641135,-160.0,0.000396,120]
[393944935,1763124641144,-193.96637115,0.000396,120]
[393944936,1763124641155,-3000.0,0.000396,40]
[393944937,1763124641165,-166.26373964,0.000396,120]
[393944938,1763124641181,-177.92802541,0.000396,120]
[393944939,1763124641201,-207.18365524,0.000396,120]
[393944940,1763124641212,-205.64619726,0.000396,120]
[393944941,1763124641222,-170.57669055,0.000396,120]
[393944942,1763124641232,-178.04092885,0.000396,120]
[393944943,1763124641243,-179.6559194,0.000396,120]
[393944944,1763124641253,-180.76307225,0.000396,120]
[393944945,1763124641263,-172.75232397,0.000396,120]
[393944946,1763124641273,-252.10603174,0.000396,120]
[393944947,1763124641284,-240.917543,0.000396,120]
[393944948,1763124641294,-223.85207367,0.000396,120]
[393944949,1763124641305,-209.44431587,0.000396,120]
[393944950,1763124641316,-204.3567363,0.000396,120]
[393944951,1763124641326,-1000.0,0.000396,13]
[393944952,1763124641336,-3000.0,0.0003961,40]
[393944953,1763124641346,-4740.252299,0.0003962,40]
[393944954,1763124641356,-1000.0,0.0003962,13]
[393944955,1763124641367,-213.52,0.00039623,120]
[393944956,1763124641377,-293.881032,0.00039632,120]
[393944957,1763124641387,-246.590146,0.00039632,120]
[393944958,1763124641397,-151.0,0.00039632,120]
[393944959,1763124641407,-151.0,0.00039632,120]
[393944960,1763124641418,-151.0,0.00039632,120]
[393944961,1763124641429,-151.0,0.00039632,120]
[393944962,1763124641443,-151.0,0.00039632,120]
[393944963,1763124641454,-151.0,0.00039632,120]
[393944964,1763124641464,-151.0,0.00039632,120]
[393944965,1763124641476,-221.74457,0.00039632,120]
[393944966,1763124641486,-357.196967,0.00039632,2]
[393944967,1763124641495,-357.196967,0.00039632,2]
[393944968,1763124641506,-357.196967,0.00039632,2]
[393944969,1763124641518,-357.19696,0.00039632,2]
[393944970,1763124641528,-151.0,0.00039632,120]
[393944971,1763124641538,-151.0,0.00039632,120]
[393944972,1763124641547,-151.0,0.00039632,120]
[393944973,1763124641556,-151.0,0.00039632,120]
[393944974,1763124641567,-151.0,0.00039632,120]
[393944975,1763124641577,-166.70429,0.00039632,120]
[393944976,1763124641587,-200.0,0.00039634,10]
[393944977,1763124641597,-110511.59719771,0.00039634,20]
[393944978,1763124641664,-683.88842277,0.00039634,20]
[393944979,1763124641676,-1058.23592004,0.00039634,20]
[393944980,1763124641700,-151.0,0.00032989,31]
[393944981,1763124641713,-2334.16208009,0.00039634,20]
[393944982,1763124641770,-151.0,0.00032999,31]
[393944983,1763124641781,-241.111347,0.00033756,31]
[393944984,1763124641790,-2407.89403392,0.00039634,20]
[393945080,1763124645444,-151.0,0.00032989,31]
[393945081,1763124645454,-1408.437332,0.00032989,31]
[393945082,1763124645464,-151.0,0.00032989,31]
[393945083,1763124645473,-1408.437332,0.00032989,31]
[393945084,1763124645483,-151.0,0.00032999,31]
[393945085,1763124645492,-1408.437332,0.00032999,31]
[393945086,1763124645501,-153.624965,0.00032999,31]
[393945087,1763124645511,-1408.437332,0.00032999,31]
[393945088,1763124645520,-151.0,0.00033756,31]
[393945089,1763124645529,-1408.437332,0.00033756,31]
[393945090,1763124645538,-546.1580492,0.00033756,2]
[393945091,1763124645548,-1408.437332,0.00033756,31]
[393945092,1763124645556,-546.1580492,0.00038281,2]
[393945093,1763124645565,-151.0,0.0003866,120]
[393945094,1763124645575,-1408.437332,0.0003866,120]
[393945095,1763124645585,-1408.437332,0.0003866,120]
[393945096,1763124645594,-151.0,0.00039632,120]
[393945097,1763124645603,-1408.437332,0.00039632,120]
[393945098,1763124645613,-331864.11942546,0.00039634,20]
[393945099,1763124645622,-1200.02377874,0.00039634,30]
[393945100,1763124645631,-1415.714629,0.00039634,120]
[393945101,1763124645641,-40211.86378717,0.00039634,120]
[393945102,1763124645650,-150.0,0.00039634,2]
[393945103,1763124645660,-45000.0,0.00039634,2]
[393945105,1763124645668,-2726.43,0.00039634,30]
[393945106,1763124645678,-423.0,0.00039634,120]
[393945107,1763124645688,-329.2056842,0.00039634,2]
[393945108,1763124645704,-293.8082164,0.00039634,2]
[393945109,1763124645713,-641.52559015,0.00039634,2]
[393945110,1763124645722,-1370.9966981,0.00039634,2]
[393945112,1763124645732,-157.67286393,0.00039634,2]
[393945113,1763124645743,-707.27384636,0.00039634,2]
[393945114,1763124645752,-21717.51844087,0.00039634,2]
[393945116,1763124645761,-6339.2736871,0.00039634,2]
[393945118,1763124645770,-158.67889952,0.00039634,2]
[393945120,1763124645780,-1728.76838735,0.00039634,2]
[393945121,1763124645790,-7530.39932157,0.00039634,2]
[393945122,1763124645799,-2090.53392852,0.00039634,2]
[393945123,1763124645808,-19026.83203421,0.00039634,2]
[393945124,1763124645818,-511.0779778,0.00039634,2]
[393945125,1763124645828,-471.07303282,0.00039634,2]
[393945126,1763124645838,-180.53263442,0.00039634,2]
[393945128,1763124645846,-190.43739936,0.00039634,2]
[393945130,1763124645855,-993.77155651,0.00039634,2]
[393945132,1763124645864,-1406.29273119,0.00039634,2]
[393945134,1763124645873,-5935.39987951,0.00039634,2]
[393945136,1763124645883,-10753.00625682,0.00039634,2]
[393945138,1763124645892,-655.55659493,0.00039634,2]
[393945140,1763124645901,-204.33140568,0.00039634,2]
[393945142,1763124645910,-2920.0,0.00039634,2]
[393945144,1763124645919,-1458.39881728,0.00039634,2]
[393945146,1763124645929,-387.42931388,0.00039634,2]
[393945148,1763124645938,-202.69732523,0.00039634,2]
[393945150,1763124645950,-3168.00591197,0.00039634,2]
[393945152,1763124645959,-167.68775827,0.00039634,2]
[393945154,1763124645968,-367.07784021,0.00039634,2]
[393945156,1763124645977,-151.34926273,0.00039634,2]
[393945158,1763124645987,-260.27079039,0.00039634,2]
[393945159,1763124645996,-58500.0,0.00039634,2]
[393945162,1763124646005,-618.0,0.00039634,2]
[393945163,1763124646014,-1671.57658035,0.00039634,2]
[393945165,1763124646023,-250.0,0.00039634,10]
[393945167,1763124646033,-250.0,0.00039634,10]
[393945169,1763124646042,-453.290814,0.00039634,10]
[393945171,1763124646051,-151.0,0.00039634,120]
[393945173,1763124646061,-461.088143,0.00039634,120]
[393945175,1763124646070,-461.088143,0.00039634,120]
[393945178,1763124646079,-461.088143,0.00039634,120]
[393945180,1763124646088,-461.088148,0.00039634,120]
[393945182,1763124646097,-151.0,0.00039634,120]
[393945184,1763124646106,-151.0,0.00039634,120]
[393945185,1763124646116,-1000.0,0.0003964,13]
[393945188,1763124646125,-454.558607,0.00039654,2]
[393945189,1763124646135,-1000.0,0.0003966,13]
[393945192,1763124646144,-305.799999,0.0003967,20]
[393945194,1763124646153,-1152.0,0.00039673,5]
[393945196,1763124646162,-1000.0,0.0003968,13]
[393945197,1763124646170,-1181.368523,0.0003968,13]
[393945199,1763124646179,-1000.0,0.000397,13]
[393945202,1763124646188,-1000.0,0.000397,13]
[393945205,1763124646200,-311.220671,0.000397,120]
[393945207,1763124646210,-213.52,0.00039723,120]
[393945209,1763124646219,-202.56121097,0.00039762,30]
[393945210,1763124646228,-450.0,0.00039768,2]
[393945218,1763124646316,-311.220671,0.000398,2]
[393945219,1763124646326,-213.52,0.00039823,120]
[393945220,1763124646336,-2000.0,0.00039832,7]
[393945221,1763124646345,-169.4238631,0.00039851,20]
[393945223,1763124646355,-213.52,0.00039923,120]
[393945224,1763124646365,-10952.31286601,0.0003999,2]
[393945225,1763124646374,-250.0,0.0004,7]
[393945226,1763124646384,-3002.4866091,0.0004,2]
[393945228,1763124646393,-5000.0,0.0004,90]
[393945230,1763124646402,-200.0,0.0004,120]
[393945233,1763124646412,-502.0231646,0.0004,30]
[393945236,1763124646421,-200.71,0.0004,30]
[393945239,1763124646431,-1336.11,0.0004,14]
[393945241,1763124646443,-213.52,0.00040023,120]
[393945243,1763124646454,-213.52,0.00040123,120]
[393945245,1763124646463,-155.0,0.000402,120]
[393945248,1763124646473,-213.52,0.00040223,120]
[393945250,1763124646482,-213.84,0.00040323,120]
[393945252,1763124646492,-1508.42,0.00040347,2]
[393945253,1763124646501,-244.97331222,0.000408,120]
[393945254,1763124646510,-295.21722631,0.000408,120]
[393945255,1763124646519,-160.0,0.000408,120]
[393945257,1763124646529,-193.96637115,0.000408,120]
[393945259,1763124646539,-166.26373964,0.000408,120]
[393945260,1763124646548,-205.64619726,0.000408,120]
[393945262,1763124646558,-311.220671,0.0004095,10]
[393945263,1763124646567,-999.0,0.00041095,120]
[393945264,1763124646577,-150.0,0.00041096,10]
[393945265,1763124646586,-165.94403958,0.00041096,2]
[393945266,1763124646595,-397.17690569,0.00041217,120]
[393945267,1763124646605,-1786.22435432,0.00041295,2]
[393945268,1763124646614,-5697.38,0.000413,14]
[393945269,1763124646623,-5000.0,0.00041763,4]
[393945270,1763124646632,-200.0,0.00041832,120]
[393945271,1763124646641,-200.0,0.00041832,120]
[393945272,1763124646651,-200.0,0.00041832,120]
[393945273,1763124646660,-1723.91,0.00041841,2]
[393945274,1763124646669,-593.4565077,0.00041896,30]
[393945275,1763124646678,-391.1554971,0.00041896,30]
[393945276,1763124646688,-593.4565077,0.00041896,30]
[393945277,1763124646701,-593.4565077,0.00041896,30]
[393945278,1763124646715,-244.97331222,0.00042,120]
[393945279,1763124646724,-295.21722631,0.00042,120]
[393945280,1763124646733,-160.0,0.00042,120]
[393945281,1763124646742,-193.96637115,0.00042,120]
[393945282,1763124646753,-1000.0,0.00042112,90]
[393945283,1763124646763,-150.4,0.00042236,120]
[393945284,1763124646772,-200.0,0.00042257,120]
[393945285,1763124646784,-150.4,0.00042336,120]
[393945286,1763124646793,-584.704,0.00042413,2]
[393945287,1763124646803,-150.4,0.00042436,120]
[393945288,1763124646812,-250.0,0.00042466,10]
[393945289,1763124646822,-150.4,0.00042536,120]
[393945290,1763124646831,-526.468572,0.00042634,120]
[393945291,1763124646841,-150.4,0.00042636,120]
[393945292,1763124646851,-432.727052,0.00042682,2]
[393945293,1763124646860,-150.4,0.00042736,120]
[393945294,1763124646869,-1028.1080845,0.00042782,10]
[393945296,1763124646878,-867.0,0.00042788,5]
[393945297,1763124646887,-546.1580492,0.00042806,2]
[393945298,1763124646897,-150.4,0.00042836,120]
[393945299,1763124646907,-291.27110833,0.00042858,3]
[393945300,1763124646917,-972.37052061,0.00042858,3]
[393945301,1763124646927,-150.4,0.00042936,120]
[393945302,1763124646937,-286.85503663,0.00043,120]
[393945303,1763124646951,-3227.56633081,0.00043,2]
[393945304,1763124646963,-380.00040936,0.00043,2]
[393945305,1763124646975,-201.43325983,0.00043,2]
[393945306,1763124646984,-150.4,0.00043036,120]
[393945307,1763124646994,-200.0,0.00043081,120]
[393945308,1763124647004,-150.4,0.00043136,120]
[393945309,1763124647013,-426.47684136,0.00043217,120]
[393945310,1763124647023,-126694.23923027,0.0004322,30]
[393945311,1763124647034,-55904.42019402,0.0004322,30]
[393945312,1763124647051,-224.81,0.00039624,3]
[393945313,1763124647060,-781.34647299,0.0004322,30]
[393945314,1763124651950,-1408.437332,0.00032989,31]
[393945315,1763124651960,-1408.437332,0.00032999,31]
[393945316,1763124651970,-1408.437332,0.00039632,120]
[393945317,1763124651980,-449.62,0.00040994,3]
[393945318,1763124651990,-63846.50933674,0.0004322,30]
[393945319,1763124652010,-19009.99999998,0.0004322,30]
[393945331,1763125181208,652.0,0.00025205,120]
[393945332,1763125219006,460.45791,0.00013699,2]
[393945333,1763125219239,460.45791,0.00020187,2]
[393945345,1763125391090,154.0,0.00022569,2]
[393945349,1763125487779,160.0,0.00022569,2]